fUSD/lending_fUSD_20260531
["ID","MTS","AMOUNT","RATE_DAILY","PERIOD"]
[423564979,1780233040000,-2555.15,0.00013698,2]
[423564981,1780233040000,-2555.15,0.00013698,2]
[423564980,1780233040000,-2555.15,0.00013698,2]
[423564983,1780233040000,-2555.15,0.00013698,2]
[423564982,1780233040000,-2555.15,0.00013698,2]
[423564985,1780233040000,-500.0,0.00013698,2]
[423564987,1780233040000,-422.76127402,0.00013698,2]
[423564986,1780233040000,-500.0,0.00013698,2]
[423564991,1780233040000,-560.8,0.00013698,2]
[423564990,1780233040000,-508.41266581,0.00013698,2]
[423564989,1780233040000,-500.0,0.00013698,2]
[423564988,1780233040000,-500.0,0.00013698,2]
[423564993,1780233040000,-560.8,0.00013698,2]
[423564992,1780233040000,-560.8,0.00013698,2]
[423564995,1780233040000,-560.8,0.00013698,2]
[423564996,1780233040000,-560.8,0.00013698,2]
[423564994,1780233040000,-560.8,0.00013698,2]
[423564999,1780233040000,-560.8,0.00013698,2]
[423565029,1780233040000,-690.92,0.00013698,2]
[423565045,1780233040000,-500.0,0.00013698,2]
[423565030,1780233040000,-690.92,0.00013698,2]
[423565064,1780233040000,-714.91,0.00013698,2]
[423565065,1780233040000,-714.91,0.00013698,2]
[423565066,1780233040000,-714.91,0.00013698,2]
[423565069,1780233040000,-714.91,0.00013698,2]
[423565067,1780233040000,-714.91,0.00013698,2]
[423565068,1780233040000,-714.91,0.00013698,2]
[423565071,1780233040000,-714.91,0.00013698,2]
[423565070,1780233040000,-714.91,0.00013698,2]
[423565072,1780233040000,-714.91,0.00013698,2]
[423565073,1780233040000,-714.91,0.00013698,2]
[423565074,1780233040000,-714.91,0.00013698,2]
[423565075,1780233040000,-714.91,0.00013698,2]
[423565031,1780233040000,-500.0,0.00013698,2]
[423565061,1780233040000,-303.83318809,0.00013698,2]
[423565076,1780233040000,-714.91,0.00013698,2]
[423565078,1780233040000,-500.0,0.00013698,2]
[423565081,1780233040000,-500.0,0.00013698,2]
[423565085,1780233040000,-500.0,0.00013698,2]
[423565083,1780233040000,-321.46293792,0.00013698,2]
[423565087,1780233040000,-500.0,0.00013698,2]
[423565084,1780233040000,-500.0,0.00013698,2]
[423565080,1780233040000,-500.0,0.00013698,2]
[423565082,1780233040000,-500.0,0.00013698,2]
[423565086,1780233040000,-500.0,0.00013698,2]
[423565088,1780233040000,-500.0,0.00013698,2]
[423565089,1780233040000,-500.0,0.00013698,2]
[423565091,1780233040000,-500.0,0.00013698,2]
[423565090,1780233040000,-500.0,0.00013698,2]
[423565079,1780233040000,-500.0,0.00013698,2]
[423565062,1780233040000,-202.78843615,0.00013698,2]
[423565077,1780233040000,-714.91,0.00013698,2]
[423565060,1780233040000,-565.6,0.00013698,2]
[423565032,1780233040000,-500.0,0.00013698,2]
[423565059,1780233040000,-565.6,0.00013698,2]
[423565040,1780233040000,-500.0,0.00013698,2]
[423565039,1780233040000,-500.0,0.00013698,2]
[423565035,1780233040000,-500.0,0.00013698,2]
[423565034,1780233040000,-500.0,0.00013698,2]
[423565033,1780233040000,-500.0,0.00013698,2]
[423565037,1780233040000,-500.0,0.00013698,2]
[423565036,1780233040000,-500.0,0.00013698,2]
[423565041,1780233040000,-500.0,0.00013698,2]
[423565043,1780233040000,-500.0,0.00013698,2]
[423565042,1780233040000,-500.0,0.00013698,2]
[423565044,1780233040000,-500.0,0.00013698,2]
[423565038,1780233040000,-500.0,0.00013698,2]
[423565054,1780233040000,-565.6,0.00013698,2]
[423565058,1780233040000,-565.6,0.00013698,2]
[423565046,1780233040000,-565.6,0.00013698,2]
[423565057,1780233040000,-565.6,0.00013698,2]
[423565056,1780233040000,-565.6,0.00013698,2]
[423565055,1780233040000,-565.6,0.00013698,2]
[423565052,1780233040000,-565.6,0.00013698,2]
[423565063,1780233040000,-714.91,0.00013698,2]
[423565051,1780233040000,-565.6,0.00013698,2]
[423565048,1780233040000,-565.6,0.00013698,2]
[423565049,1780233040000,-565.6,0.00013698,2]
[423565047,1780233040000,-565.6,0.00013698,2]
[423565050,1780233040000,-565.6,0.00013698,2]
[423565053,1780233040000,-565.6,0.00013698,2]
[423565144,1780233041000,-500.0,0.00013698,2]
[423565142,1780233041000,-500.0,0.00013698,2]
[423565139,1780233041000,-500.0,0.00013698,2]
[423565149,1780233041000,-500.0,0.00013698,2]
[423565140,1780233041000,-500.0,0.00013698,2]
[423565124,1780233041000,-500.0,0.00013698,2]
[423565125,1780233041000,-216.73250781,0.00013698,2]
[423565134,1780233041000,-500.0,0.00013698,2]
[423565136,1780233041000,-500.0,0.00013698,2]
[423565127,1780233041000,-500.0,0.00013698,2]
[423565122,1780233041000,-500.0,0.00013698,2]
[423565137,1780233041000,-500.0,0.00013698,2]
[423565141,1780233041000,-500.0,0.00013698,2]
[423565146,1780233041000,-500.0,0.00013698,2]
[423565161,1780233041000,-1056.43,0.00013698,2]
[423565148,1780233041000,-500.0,0.00013698,2]
[423565147,1780233041000,-500.0,0.00013698,2]
[423565145,1780233041000,-500.0,0.00013698,2]
[423565151,1780233041000,-500.0,0.00013698,2]
[423565150,1780233041000,-500.0,0.00013698,2]
[423565153,1780233041000,-500.0,0.00013698,2]
[423565156,1780233041000,-500.0,0.00013698,2]
[423565155,1780233041000,-500.0,0.00013698,2]
[423565154,1780233041000,-500.0,0.00013698,2]
[423565157,1780233041000,-500.0,0.00013698,2]
[423565162,1780233041000,-1056.43,0.00013698,2]
[423565158,1780233041000,-500.0,0.00013698,2]
[423565123,1780233041000,-544.57270483,0.00013698,2]
[423565143,1780233041000,-500.0,0.00013698,2]
[423565121,1780233041000,-500.0,0.00013698,2]
[423565160,1780233041000,-1056.43,0.00013698,2]
[423565120,1780233041000,-500.0,0.00013698,2]
[423565093,1780233041000,-500.0,0.00013698,2]
[423565092,1780233041000,-500.0,0.00013698,2]
[423565094,1780233041000,-500.0,0.00013698,2]
[423565095,1780233041000,-245.62717302,0.00013698,2]
[423565101,1780233041000,-500.0,0.00013698,2]
[423565096,1780233041000,-500.0,0.00013698,2]
[423565100,1780233041000,-500.0,0.00013698,2]
[423565097,1780233041000,-500.0,0.00013698,2]
[423565102,1780233041000,-500.0,0.00013698,2]
[423565098,1780233041000,-500.0,0.00013698,2]
[423565099,1780233041000,-500.0,0.00013698,2]
[423565103,1780233041000,-494.05405209,0.00013698,2]
[423565104,1780233041000,-500.0,0.00013698,2]
[423565106,1780233041000,-500.0,0.00013698,2]
[423565107,1780233041000,-500.0,0.00013698,2]
[423565105,1780233041000,-500.0,0.00013698,2]
[423565109,1780233041000,-500.0,0.00013698,2]
[423565110,1780233041000,-500.0,0.00013698,2]
[423565108,1780233041000,-500.0,0.00013698,2]
[423565112,1780233041000,-500.0,0.00013698,2]
[423565113,1780233041000,-500.0,0.00013698,2]
[423565111,1780233041000,-500.0,0.00013698,2]
[423565115,1780233041000,-373.249,0.00013698,2]
[423565114,1780233041000,-500.0,0.00013698,2]
[423565117,1780233041000,-500.0,0.00013698,2]
[423565116,1780233041000,-500.0,0.00013698,2]
[423565119,1780233041000,-500.0,0.00013698,2]
[423565130,1780233041000,-501.20372086,0.00013698,2]
[423565132,1780233041000,-500.0,0.00013698,2]
[423565118,1780233041000,-500.0,0.00013698,2]
[423565159,1780233041000,-431.36730737,0.00013698,2]
[423565152,1780233041000,-500.0,0.00013698,2]
[423565165,1780233041000,-1056.43,0.00013698,2]
[423565197,1780233041000,-500.0,0.00013698,2]
[423565199,1780233041000,-500.0,0.00013698,2]
[423565198,1780233041000,-500.0,0.00013698,2]
[423565202,1780233041000,-500.0,0.00013698,2]
[423565203,1780233041000,-500.0,0.00013698,2]
[423565207,1780233041000,-1656.67,0.00013698,2]
[423565205,1780233041000,-500.0,0.00013698,2]
[423565206,1780233041000,-365.01560358,0.00013698,2]
[423565208,1780233041000,-1656.67,0.00013698,2]
[423565204,1780233041000,-500.0,0.00013698,2]
[423565209,1780233041000,-1656.67,0.00013698,2]
[423565213,1780233041000,-1656.67,0.00013698,2]
[423565210,1780233041000,-1656.67,0.00013698,2]
[423565211,1780233041000,-1656.67,0.00013698,2]
[423565212,1780233041000,-1656.67,0.00013698,2]
[423565215,1780233041000,-1656.67,0.00013698,2]
[423565214,1780233041000,-1656.67,0.00013698,2]
[423565216,1780233041000,-1656.67,0.00013698,2]
[423565217,1780233041000,-1656.67,0.00013698,2]
[423565218,1780233041000,-1656.67,0.00013698,2]
[423565221,1780233041000,-1656.67,0.00013698,2]
[423565220,1780233041000,-1656.67,0.00013698,2]
[423565223,1780233041000,-500.0,0.00013698,2]
[423565219,1780233041000,-1656.67,0.00013698,2]
[423565222,1780233041000,-500.0,0.00013698,2]
[423565224,1780233041000,-500.0,0.00013698,2]
[423565226,1780233041000,-500.0,0.00013698,2]
[423565227,1780233041000,-500.0,0.00013698,2]
[423565163,1780233041000,-1056.43,0.00013698,2]
[423565195,1780233041000,-500.0,0.00013698,2]
[423565192,1780233041000,-500.0,0.00013698,2]
[423565225,1780233041000,-500.0,0.00013698,2]
[423565193,1780233041000,-500.0,0.00013698,2]
[423565194,1780233041000,-500.0,0.00013698,2]
[423565164,1780233041000,-1056.43,0.00013698,2]
[423565166,1780233041000,-1056.43,0.00013698,2]
[423565168,1780233041000,-1056.43,0.00013698,2]
[423565170,1780233041000,-1056.43,0.00013698,2]
[423565169,1780233041000,-1056.43,0.00013698,2]
[423565172,1780233041000,-1056.43,0.00013698,2]
[423565171,1780233041000,-500.0,0.00013698,2]
[423565173,1780233041000,-500.0,0.00013698,2]
[423565174,1780233041000,-1056.43,0.00013698,2]
[423565176,1780233041000,-1056.43,0.00013698,2]
[423565175,1780233041000,-500.0,0.00013698,2]
[423565178,1780233041000,-500.0,0.00013698,2]
[423565180,1780233041000,-500.0,0.00013698,2]
[423565185,1780233041000,-500.0,0.00013698,2]
[423565167,1780233041000,-1056.43,0.00013698,2]
[423565182,1780233041000,-500.0,0.00013698,2]
[423565186,1780233041000,-500.0,0.00013698,2]
[423565196,1780233041000,-500.0,0.00013698,2]
[423565190,1780233041000,-500.0,0.00013698,2]
[423565201,1780233041000,-500.0,0.00013698,2]
[423565200,1780233041000,-500.0,0.00013698,2]
[423565189,1780233041000,-500.0,0.00013698,2]
[423565191,1780233041000,-502.19295882,0.00013698,2]
[423565187,1780233041000,-500.0,0.00013698,2]
[423565184,1780233041000,-500.0,0.00013698,2]
[423565181,1780233041000,-500.0,0.00013698,2]
[423565177,1780233041000,-500.0,0.00013698,2]
[423565179,1780233041000,-500.0,0.00013698,2]
[423565188,1780233041000,-500.0,0.00013698,2]
[423565183,1780233041000,-500.0,0.00013698,2]
[423565266,1780233042000,-500.0,0.00013699,2]
[423565265,1780233042000,-500.0,0.00013699,2]
[423565263,1780233042000,-500.0,0.00013699,2]
[423565264,1780233042000,-500.0,0.00013699,2]
[423565257,1780233042000,-500.0,0.00013699,2]
[423565261,1780233042000,-500.0,0.00013699,2]
[423565262,1780233042000,-500.0,0.00013699,2]
[423565259,1780233042000,-410.5699744,0.00013699,2]
[423565258,1780233042000,-500.0,0.00013699,2]
[423565256,1780233042000,-500.0,0.00013699,2]
[423565260,1780233042000,-500.0,0.00013699,2]
[423565267,1780233042000,-500.0,0.00013699,2]
[423565270,1780233042000,-500.0,0.00013699,2]
[423565269,1780233042000,-500.0,0.00013699,2]
[423565271,1780233042000,-150.0,0.00013702,2]
[423565272,1780233042000,-150.0,0.00013708,2]
[423565275,1780233042000,-150.0,0.00013752,2]
[423565279,1780233042000,-300.0,0.00013818,2]
[423565276,1780233042000,-2000.0,0.00013759,2]
[423565273,1780233042000,-150.0,0.00013727,2]
[423565274,1780233042000,-150.0,0.00013737,2]
[423565277,1780233042000,-150.0,0.00013787,2]
[423565252,1780233042000,-500.0,0.00013699,2]
[423565278,1780233042000,-150.0,0.00013796,2]
[423565268,1780233042000,-500.0,0.00013699,2]
[423565255,1780233042000,-500.0,0.00013699,2]
[423565235,1780233042000,-500.0,0.00013698,2]
[423565248,1780233042000,-151.0,0.00013699,2]
[423565281,1780233042000,-300.0,0.00013818,2]
[423565229,1780233042000,-500.0,0.00013698,2]
[423565228,1780233042000,-500.0,0.00013698,2]
[423565239,1780233042000,-151.0,0.00013699,2]
[423565231,1780233042000,-500.0,0.00013698,2]
[423565230,1780233042000,-500.0,0.00013698,2]
[423565232,1780233042000,-500.0,0.00013698,2]
[423565237,1780233042000,-151.0,0.00013699,2]
[423565236,1780233042000,-2500.0,0.00013699,2]
[423565233,1780233042000,-500.0,0.00013698,2]
[423565234,1780233042000,-500.0,0.00013698,2]
[423565251,1780233042000,-500.0,0.00013699,2]
[423565238,1780233042000,-151.0,0.00013699,2]
[423565241,1780233042000,-151.0,0.00013699,2]
[423565242,1780233042000,-151.0,0.00013699,2]
[423565243,1780233042000,-151.0,0.00013699,2]
[423565244,1780233042000,-151.0,0.00013699,2]
[423565245,1780233042000,-151.0,0.00013699,2]
[423565246,1780233042000,-151.0,0.00013699,2]
[423565247,1780233042000,-162.917968,0.00013699,2]
[423565254,1780233042000,-500.0,0.00013699,2]
[423565249,1780233042000,-200.0,0.00013699,2]
[423565253,1780233042000,-500.0,0.00013699,2]
[423565250,1780233042000,-166.66,0.00013699,2]
[423565240,1780233042000,-151.0,0.00013699,2]
[423565280,1780233042000,-300.0,0.00013818,2]
[423565284,1780233042000,-508.41629767,0.00013818,2]
[423565283,1780233042000,-1056.43,0.00013818,2]
[423565304,1780233042000,-1900.0,0.000139,5]
[423565314,1780233042000,-300.0,0.00013984,2]
[423565328,1780233042000,-1546.0,0.00013985,2]
[423565319,1780233042000,-1546.0,0.00013985,2]
[423565318,1780233042000,-1546.0,0.00013985,2]
[423565316,1780233042000,-151.0,0.00013984,2]
[423565317,1780233042000,-1546.0,0.00013985,2]
[423565325,1780233042000,-1546.0,0.00013985,2]
[423565315,1780233042000,-151.0,0.00013984,2]
[423565326,1780233042000,-1546.0,0.00013985,2]
[423565322,1780233042000,-1546.0,0.00013985,2]
[423565324,1780233042000,-1546.0,0.00013985,2]
[423565327,1780233042000,-1546.0,0.00013985,2]
[423565330,1780233042000,-1619.94599797,0.00013985,2]
[423565329,1780233042000,-1546.0,0.00013985,2]
[423565331,1780233042000,-163.0,0.00013985,2]
[423565335,1780233042000,-151.0,0.00013985,2]
[423565332,1780233042000,-280.3872819,0.00013985,2]
[423565337,1780233042000,-151.0,0.00013985,2]
[423565334,1780233042000,-151.0,0.00013985,2]
[423565338,1780233042000,-151.0,0.00013985,2]
[423565333,1780233042000,-151.0,0.00013985,2]
[423565336,1780233042000,-151.0,0.00013985,2]
[423565282,1780233042000,-560.8,0.00013818,2]
[423565339,1780233042000,-151.0,0.00013985,2]
[423565312,1780233042000,-500.0,0.00013983,2]
[423565313,1780233042000,-300.0,0.00013984,2]
[423565320,1780233042000,-1546.0,0.00013985,2]
[423565311,1780233042000,-166.66,0.00013973,2]
[423565286,1780233042000,-150.0,0.00013821,2]
[423565310,1780233042000,-150.0,0.00013973,2]
[423565287,1780233042000,-2555.15,0.00013822,2]
[423565285,1780233042000,-34782.38027615,0.00013819,2]
[423565288,1780233042000,-544.53548151,0.00013823,16]
[423565290,1780233042000,-2164.528491,0.00013833,2]
[423565289,1780233042000,-188.91,0.00013827,2]
[423565292,1780233042000,-2164.528491,0.00013833,2]
[423565293,1780233042000,-2164.528491,0.00013833,2]
[423565296,1780233042000,-151.0,0.00013833,2]
[423565295,1780233042000,-151.0,0.00013833,2]
[423565294,1780233042000,-151.0,0.00013833,2]
[423565291,1780233042000,-2164.528491,0.00013833,2]
[423565305,1780233042000,-150.0,0.00013907,2]
[423565299,1780233042000,-166.66,0.00013836,2]
[423565297,1780233042000,-151.0,0.00013833,2]
[423565298,1780233042000,-44511.74818075,0.00013833,2]
[423565302,1780233042000,-150.0,0.00013862,2]
[423565300,1780233042000,-150.0,0.0001384,2]
[423565303,1780233042000,-150.0,0.00013884,2]
[423565309,1780233042000,-150.0,0.00013967,2]
[423565308,1780233042000,-150.0,0.00013928,2]
[423565307,1780233042000,-500.0,0.00013928,2]
[423565306,1780233042000,-150.0,0.00013916,2]
[423565301,1780233042000,-150.0,0.00013847,2]
[423565382,1780233043000,-150.0,0.00014105,2]
[423565369,1780233043000,-150.0,0.00014087,2]
[423565380,1780233043000,-2000.0,0.000141,2]
[423565383,1780233043000,-166.66,0.0001411,2]
[423565381,1780233043000,-44511.74818075,0.000141,2]
[423565373,1780233043000,-500.0,0.00014088,2]
[423565376,1780233043000,-1656.67,0.00014088,2]
[423565374,1780233043000,-565.6,0.00014088,2]
[423565379,1780233043000,-34782.38027615,0.00014089,2]
[423565372,1780233043000,-690.92,0.00014088,2]
[423565385,1780233043000,-150.0,0.0001413,2]
[423565375,1780233043000,-714.91,0.00014088,2]
[423565391,1780233043000,-2000.0,0.000142,2]
[423565405,1780233043000,-150.0,0.00014281,2]
[423565388,1780233043000,-150.0,0.00014149,2]
[423565387,1780233043000,-150.0,0.00014147,2]
[423565390,1780233043000,-150.0,0.00014193,2]
[423565389,1780233043000,-150.0,0.00014154,2]
[423565393,1780233043000,-150.0,0.00014207,2]
[423565397,1780233043000,-166.66,0.00014247,2]
[423565400,1780233043000,-2629.0,0.00014266,5]
[423565395,1780233043000,-150.0,0.00014237,2]
[423565407,1780233043000,-2000.0,0.000143,2]
[423565403,1780233043000,-150.0,0.00014267,2]
[423565396,1780233043000,-150.0,0.00014237,2]
[423565408,1780233043000,-150.0,0.0001432,2]
[423565368,1780233043000,-150.0,0.00014061,2]
[423565394,1780233043000,-150.0,0.00014237,2]
[423565366,1780233043000,-231.81231694,0.00014048,2]
[423565343,1780233043000,-162.57738279,0.00013985,2]
[423565370,1780233043000,-300.0,0.00014088,2]
[423565401,1780233043000,-2592.0,0.00014266,5]
[423565340,1780233043000,-151.0,0.00013985,2]
[423565342,1780233043000,-151.0,0.00013985,2]
[423565341,1780233043000,-151.0,0.00013985,2]
[423565348,1780233043000,-500.0,0.00014,2]
[423565344,1780233043000,-154.0,0.00013985,2]
[423565345,1780233043000,-150.0,0.00013987,2]
[423565347,1780233043000,-14090.15774791,0.0001399,2]
[423565350,1780233043000,-500.0,0.00014,2]
[423565346,1780233043000,-150.0,0.00013987,2]
[423565351,1780233043000,-518.8,0.00014,2]
[423565349,1780233043000,-500.0,0.00014,2]
[423565352,1780233043000,-500.0,0.00014,2]
[423565371,1780233043000,-300.0,0.00014088,2]
[423565353,1780233043000,-250.0,0.00014,2]
[423565355,1780233043000,-433.0,0.00014004,2]
[423565360,1780233043000,-150.0,0.00014017,2]
[423565357,1780233043000,-1546.0,0.00014016,2]
[423565359,1780233043000,-1546.0,0.00014016,2]
[423565358,1780233043000,-1546.0,0.00014016,2]
[423565356,1780233043000,-1546.0,0.00014016,2]
[423565364,1780233043000,-153.0,0.00014048,2]
[423565361,1780233043000,-150.0,0.00014027,2]
[423565363,1780233043000,-153.0,0.00014048,2]
[423565362,1780233043000,-153.0,0.00014048,2]
[423565365,1780233043000,-153.0,0.00014048,2]
[423565367,1780233043000,-150.0,0.0001405,2]
[423565377,1780233043000,-151.0,0.00014089,2]
[423565354,1780233043000,-2000.0,0.00014,2]
[423565398,1780233043000,-409.61465953,0.00014249,2]
[423565392,1780233043000,-500.0,0.00014202,2]
[423565409,1780233043000,-150.0,0.00014325,2]
[423565436,1780233043000,-500.0,0.00014476,2]
[423565440,1780233043000,-150.0,0.00014487,2]
[423565443,1780233043000,-150.0,0.00014501,2]
[423565444,1780233043000,-150.0,0.00014507,2]
[423565442,1780233043000,-2266.0,0.000145,2]
[423565459,1780233043000,-300.0,0.00014652,2]
[423565460,1780233043000,-15000.0,0.00014653,2]
[423565456,1780233043000,-34782.38027615,0.0001463,2]
[423565449,1780233043000,-150.0,0.0001459,2]
[423565450,1780233043000,-981.0326436,0.00014608,2]
[423565452,1780233043000,-516.05,0.00014612,2]
[423565451,1780233043000,-150.0,0.00014612,2]
[423565448,1780233043000,-150.0,0.00014567,2]
[423565434,1780233043000,-150.0,0.00014447,2]
[423565454,1780233043000,-150.0,0.00014627,2]
[423565455,1780233043000,-300.0,0.00014629,2]
[423565457,1780233043000,-44511.74818075,0.00014633,2]
[423565458,1780233043000,-150.0,0.00014634,2]
[423565461,1780233043000,-150.0,0.00014653,2]
[423565469,1780233043000,-1195250.13052306,0.000147,2]
[423565467,1780233043000,-1544.0,0.00014695,2]
[423565464,1780233043000,-666.0,0.00014688,2]
[423565468,1780233043000,-11479.30476456,0.000147,2]
[423565462,1780233043000,-150.0,0.00014678,2]
[423565463,1780233043000,-150.0,0.00014687,2]
[423565466,1780233043000,-15000.0,0.00014689,2]
[423565470,1780233043000,-15000.0,0.00014708,2]
[423565399,1780233043000,-2544.0,0.00014266,5]
[423565453,1780233043000,-432.33,0.00014616,2]
[423565438,1780233043000,-250.0,0.00014483,2]
[423565465,1780233043000,-6111.0,0.00014688,2]
[423565437,1780233043000,-2000.0,0.00014482,2]
[423565410,1780233043000,-350.0,0.00014327,2]
[423565447,1780233043000,-150.0,0.00014558,2]
[423565414,1780233043000,-300.0,0.00014358,2]
[423565420,1780233043000,-152.0,0.00014378,7]
[423565411,1780233043000,-150.0,0.00014327,2]
[423565412,1780233043000,-150.0,0.00014344,2]
[423565413,1780233043000,-300.0,0.00014358,2]
[423565415,1780233043000,-308.12090886,0.00014358,2]
[423565417,1780233043000,-34782.38027615,0.00014359,2]
[423565416,1780233043000,-350.0,0.00014359,2]
[423565419,1780233043000,-150.0,0.00014369,2]
[423565418,1780233043000,-44511.74818075,0.00014367,2]
[423565424,1780233043000,-560.8,0.00014395,2]
[423565422,1780233043000,-150.0,0.00014387,2]
[423565421,1780233043000,-166.66,0.00014384,2]
[423565428,1780233043000,-152.0,0.00014402,7]
[423565441,1780233043000,-500.0,0.00014494,2]
[423565433,1780233043000,-6111.0,0.0001444,2]
[423565446,1780233043000,-150.0,0.00014546,2]
[423565435,1780233043000,-150.0,0.00014457,2]
[423565432,1780233043000,-2555.15,0.00014425,2]
[423565427,1780233043000,-156.46,0.00014396,2]
[423565445,1780233043000,-10000.0,0.00014518,2]
[423565426,1780233043000,-350.0,0.00014396,2]
[423565423,1780233043000,-1546.0,0.00014391,2]
[423565429,1780233043000,-150.0,0.00014413,2]
[423565430,1780233043000,-500.0,0.00014424,2]
[423565431,1780233043000,-150.0,0.00014424,2]
[423565439,1780233043000,-150.0,0.00014487,2]
[423565425,1780233043000,-1056.43,0.00014395,2]
[423565504,1780233044000,-253.53307865,0.00014833,2]
[423565505,1780233044000,-386.0,0.00014833,2]
[423565508,1780233044000,-337.67,0.00014834,2]
[423565509,1780233044000,-386.0,0.00014835,2]
[423565503,1780233044000,-386.0,0.00014833,2]
[423565502,1780233044000,-386.0,0.00014831,2]
[423565501,1780233044000,-386.0,0.0001483,2]
[423565507,1780233044000,-386.0,0.00014834,2]
[423565522,1780233044000,-2000.0,0.0001485,2]
[423565500,1780233044000,-150.0,0.0001482,2]
[423565515,1780233044000,-565.6,0.00014844,2]
[423565510,1780233044000,-386.0,0.00014841,2]
[423565521,1780233044000,-153.80363737,0.0001485,2]
[423565512,1780233044000,-478.36,0.00014843,2]
[423565513,1780233044000,-690.92,0.00014844,2]
[423565514,1780233044000,-500.0,0.00014844,2]
[423565516,1780233044000,-714.91,0.00014844,2]
[423565520,1780233044000,-1056.43,0.00014849,2]
[423565518,1780233044000,-386.0,0.00014845,2]
[423565517,1780233044000,-1656.67,0.00014844,2]
[423565519,1780233044000,-560.8,0.00014849,2]
[423565499,1780233044000,-3907.81197369,0.00014813,2]
[423565524,1780233044000,-2000.0,0.0001485,2]
[423565511,1780233044000,-1148.07,0.00014841,2]
[423565498,1780233044000,-150.0,0.0001481,2]
[423565479,1780233044000,-300.0,0.00014759,2]
[423565495,1780233044000,-386.0,0.00014805,2]
[423565534,1780233044000,-386.0,0.00014868,2]
[423565472,1780233044000,-150.0,0.00014737,2]
[423565471,1780233044000,-150.0,0.00014722,2]
[423565484,1780233044000,-386.0,0.00014764,2]
[423565474,1780233044000,-371.47043533,0.00014744,2]
[423565473,1780233044000,-386.0,0.00014739,2]
[423565477,1780233044000,-500.0,0.0001475,2]
[423565478,1780233044000,-386.0,0.00014756,2]
[423565475,1780233044000,-150.0,0.00014747,2]
[423565476,1780233044000,-386.0,0.00014747,2]
[423565480,1780233044000,-15000.0,0.0001476,2]
[423565481,1780233044000,-386.0,0.0001476,2]
[423565482,1780233044000,-386.0,0.0001476,2]
[423565483,1780233044000,-386.0,0.00014763,2]
[423565486,1780233044000,-386.0,0.00014767,2]
[423565497,1780233044000,-386.0,0.00014807,2]
[423565496,1780233044000,-150.0,0.00014806,2]
[423565487,1780233044000,-386.0,0.0001477,2]
[423565485,1780233044000,-150.0,0.00014766,2]
[423565488,1780233044000,-150.0,0.00014772,2]
[423565489,1780233044000,-386.0,0.00014785,2]
[423565490,1780233044000,-413.61503396,0.00014787,2]
[423565494,1780233044000,-300.0,0.000148,5]
[423565493,1780233044000,-150.0,0.00014799,2]
[423565492,1780233044000,-386.0,0.00014797,2]
[423565491,1780233044000,-386.0,0.0001479,2]
[423565523,1780233044000,-2000.0,0.0001485,2]
[423565506,1780233044000,-15000.0,0.00014834,2]